bitfinex-derivatives/quotes_ETHF0:USTF0_20260312
["timestamp","ask_amount","ask_price","bid_price","bid_amount"]
[1773356483363,10.09687753,2066.5,2066.3,0.022]
[1773356483858,10.1005011,2066.5,2066.3,0.022]
[1773356484868,10.3454411,2066.5,2066.3,0.022]
[1773356485568,10.3457011,2066.5,2066.3,0.022]
[1773356486168,0.4851,2068.3,2066.5,10.09989975]
[1773356486364,0.4851,2068.3,2066.4,5.95148]
[1773356486365,0.23637425,2069.4,2068.3,10.09989975]
[1773356486564,0.23637425,2069.4,2068.2,8.75809919]
[1773356486565,17.52697132,2069.4,2069.2,0.022]
[1773356486770,10.11887753,2069.3,2069.0,0.022]
[1773356487068,9.74514738,2069.3,2069.0,0.022]
[1773356487275,0.00347618,2069.3,2069.1,6.78986137]
[1773356487565,0.00347618,2069.3,2068.8,0.022]
[1773356487566,11.247,2069.2,2068.8,0.022]
[1773356487760,10.11887753,2069.0,2068.4,0.022]
[1773356488362,10.11887753,2069.0,2068.4,10.12189975]
[1773356488567,10.11887753,2069.0,2068.4,10.12791737]
[1773356490371,10.11887753,2069.0,2068.4,10.37462879]
[1773356491168,3.39486092,2068.9,2068.4,0.02801762]
[1773356491376,10.11887753,2068.7,2068.4,0.02801762]
[1773356491570,11.315,2068.8,2068.2,10.12189975]
[1773356492469,11.315,2068.8,2068.2,10.12537721]
[1773356494176,11.315,2068.8,2068.2,10.36203327]
[1773356494478,13.51373845,2068.7,2068.2,0.26213352]
[1773356494677,10.11887753,2068.6,2068.2,10.36203327]
[1773356494877,10.11887753,2068.6,2068.2,0.26213352]
[1773356495176,3.39486092,2068.5,2068.2,10.36203327]
[1773356498268,3.39486092,2068.5,2068.2,10.33655581]
[1773356498473,13.51373845,2068.5,2068.0,10.12189975]
[1773356499377,10.11887753,2068.4,2068.0,10.12482132]
[1773356499572,3.39486092,2068.5,2068.0,10.12482132]
[1773356499874,13.51373845,2068.5,2068.0,10.12482132]
[1773356500066,10.11887753,2068.4,2068.0,10.12482132]
[1773356500267,10.09470192,2068.4,2068.0,0.02492157]
[1773356500470,3.39486092,2068.3,2068.0,0.26520232]
[1773356500678,13.51373845,2068.3,2068.0,10.36510207]
[1773356500875,3.39486092,2068.3,2068.0,10.36510207]
[1773356501976,14.81886092,2068.3,2068.0,10.36510207]
[1773356502176,24.93773845,2068.3,2068.0,10.36510207]
[1773356502377,24.93773845,2068.3,2068.0,0.26520232]
[1773356503477,12.74195689,2068.7,2068.0,12.37822566]
[1773356503674,11.433,2068.6,2068.0,12.37822566]
[1773356503875,12.74195689,2068.7,2068.0,12.37822566]
[1773356504179,11.435,2068.6,2068.0,12.37822566]
[1773356505470,1e-05,2068.9,2068.3,0.2417]
[1773356505675,11.44647618,2069.3,2068.5,12.11302334]
[1773356505870,12.74195689,2069.2,2068.9,0.022]
[1773356506683,12.74195689,2069.2,2068.7,0.022]
[1773356506983,12.74195689,2069.0,2068.5,0.022]
[1773356507178,12.74195689,2068.8,2068.3,0.022]
[1773356507674,12.74195689,2068.8,2068.1,0.022]
[1773356508070,0.132,2068.9,2068.2,18.28730069]
[1773356508277,12.87395689,2068.9,2068.3,18.28684961]
[1773356508477,12.87395689,2068.9,2068.4,18.33592809]
[1773356508677,11.593,2068.9,2068.4,12.11302334]
[1773356508877,11.462,2069.7,2068.8,12.11302334]
[1773356509075,12.74195689,2069.8,2069.0,12.11302334]
[1773356509277,12.71995689,2069.8,2069.5,0.022]
[1773356509476,12.71995689,2069.8,2069.3,12.13502334]
[1773356509973,12.76395689,2069.8,2069.3,12.13502334]
[1773356510174,12.76395689,2069.8,2069.3,0.022]
[1773356510380,12.77004028,2069.8,2069.3,0.02646694]
[1773356513177,12.77004028,2069.8,2069.4,6.20476846]
[1773356513377,13.61375923,2069.7,2069.3,0.02646694]
[1773356513578,13.61375923,2069.7,2069.4,6.20475947]
[1773356513779,13.61375923,2069.7,2069.3,0.02646694]
[1773356513980,13.61375923,2069.7,2069.4,6.2047834]
[1773356514181,13.61375923,2069.7,2069.5,5.59541694]
[1773356514382,13.61375923,2069.7,2069.3,0.02646694]
[1773356514888,13.61375923,2069.7,2069.1,0.25896465]
[1773356515091,13.61375923,2069.5,2069.1,0.25896465]
[1773356515286,8.54020478,2069.5,2069.1,0.25896465]
[1773356516285,13.61375923,2069.3,2068.9,0.022]
[1773356516481,13.67775923,2069.3,2068.9,0.022]
[1773356517783,13.67775923,2069.3,2068.7,0.022]
[1773356517979,13.67775923,2069.3,2068.5,0.022]
[1773356518185,13.80975923,2069.3,2068.5,0.022]
[1773356518388,16.62168842,2069.3,2068.5,0.022]
[1773356518790,16.86392842,2069.3,2068.5,0.022]
[1773356519490,0.40697,2069.2,2068.3,0.022]
[1773356519689,25.40565923,2069.1,2068.3,0.022]
[1773356519990,13.86655923,2069.0,2068.1,0.022]
[1773356520390,13.86655923,2069.0,2068.1,0.26463798]
[1773356520592,13.61375923,2069.0,2068.1,13.87194097]
[1773356521092,13.81175923,2069.0,2068.1,13.83794097]
[1773356521788,16.86545842,2069.0,2068.1,0.23063798]
[1773356521983,16.86545842,2069.0,2067.9,0.022]
[1773356523792,16.86545842,2069.0,2067.9,0.26115618]
[1773356523992,13.61375923,2068.8,2067.9,0.26115618]
[1773356524187,13.86680923,2068.6,2067.9,0.26115618]
[1773356524584,13.61375923,2068.6,2067.9,0.26115618]
[1773356525691,13.61375923,2068.6,2067.9,13.86845917]
[1773356526288,13.61375923,2068.6,2068.0,5.70452672]
[1773356526487,13.61375923,2068.6,2068.1,5.70452672]
[1773356526686,13.61375923,2068.6,2067.9,0.26115618]
[1773356526995,13.85870923,2068.1,2067.5,0.022]
[1773356527195,13.61375923,2067.9,2067.5,0.022]
[1773356527397,13.61375923,2067.9,2067.5,13.62930299]
[1773356527692,11.575,2068.0,2067.5,13.62930299]
[1773356528093,25.18875923,2068.0,2067.5,13.62930299]
[1773356528296,13.61375923,2068.7,2067.7,13.60730299]
[1773356529194,13.61763296,2068.7,2067.7,13.60730299]
[1773356531095,0.00387373,2068.7,2067.9,13.60730299]
[1773356531399,0.00387373,2068.7,2068.1,13.60730299]
[1773356535098,13.67775923,2069.3,2068.7,13.60730299]
[1773356535295,13.61375923,2069.3,2068.7,13.60730299]
[1773356535492,13.59175923,2069.3,2068.9,0.022]
[1773356535894,13.59589038,2069.3,2068.9,0.022]
[1773356536298,13.63989038,2069.3,2068.9,0.022]
[1773356538397,13.63989038,2069.3,2068.7,0.022]
[1773356538603,13.61375923,2069.1,2068.5,0.022]
[1773356538801,13.61375923,2068.9,2068.5,0.022]
[1773356541096,13.61375923,2068.9,2068.5,13.63022111]
[1773356542003,13.61375923,2068.9,2068.5,0.022]
[1773356542799,13.61375923,2068.9,2068.4,0.04512302]
[1773356543104,13.61375923,2068.9,2068.3,0.022]
[1773356543504,13.61375923,2068.9,2068.3,0.26340601]
[1773356545200,24.92460246,2068.8,2068.4,13.60822111]
[1773356545407,13.25960246,2068.7,2068.4,13.60822111]
[1773356545606,13.25960246,2068.7,2068.3,0.26340601]
[1773356545807,13.25960246,2068.7,2068.3,13.87162712]
[1773356547105,13.25960246,2068.7,2068.3,0.26340601]
[1773356548806,13.25960246,2068.7,2068.3,13.87162712]
[1773356549603,24.92460246,2068.8,2068.3,13.87162712]
[1773356549805,13.25960246,2069.2,2068.4,13.60822111]
[1773356550103,11.684,2069.1,2068.5,13.60822111]
[1773356550404,24.92160246,2069.1,2068.8,0.022]
[1773356551301,13.25960246,2069.0,2068.8,0.022]
[1773356551509,11.662,2069.1,2068.8,0.022]
[1773356551705,24.92160246,2069.1,2068.8,0.022]
[1773356553110,11.695,2069.0,2068.8,0.022]
[1773356554007,13.25960246,2069.1,2068.8,0.022]
[1773356554206,11.697,2069.0,2068.8,0.022]
[1773356554913,24.95660246,2069.0,2068.8,0.022]
[1773356555517,13.25960246,2068.9,2068.6,0.022]
[1773356556413,13.25960246,2068.9,2068.6,13.63022111]
[1773356556614,11.703,2068.8,2068.6,13.63022111]
[1773356556810,3.55485567,2068.7,2068.6,13.63022111]
[1773356557005,11.704,2068.8,2068.6,13.63022111]
[1773356557207,13.25960246,2068.7,2068.5,4.01945065]
[1773356558116,24.96360246,2068.8,2068.5,4.01945065]
[1773356558310,13.25960246,2068.7,2068.5,4.01945065]
[1773356560211,13.25960246,2068.7,2068.5,0.39245626]
[1773356560413,13.25960246,2068.7,2068.4,6.29111959]
[1773356560709,13.25960246,2068.7,2068.2,0.022]
[1773356560914,13.25960246,2068.7,2068.0,7.45889079]
[1773356561106,13.25960246,2068.7,2068.0,0.022]
[1773356562712,13.25960246,2068.7,2068.0,0.26578585]
[1773356563518,13.25960246,2068.7,2067.8,0.022]
[1773356563720,13.41360246,2068.7,2067.8,0.022]
[1773356564619,13.41360246,2068.7,2067.8,14.46683136]
[1773356566120,13.41360246,2068.7,2067.8,0.022]
[1773356566818,13.41360246,2068.7,2067.8,0.25807272]
[1773356567322,13.41360246,2068.7,2067.8,14.70290408]
[1773356568333,14.48959409,2068.5,2067.8,14.70290408]
[1773356569026,14.64359409,2068.7,2068.0,14.44483136]
[1773356569332,14.64359409,2068.7,2068.2,14.44483136]
[1773356569333,0.154,2068.7,2068.2,14.44483136]
[1773356569532,11.738,2068.9,2068.2,14.44483136]
[1773356569926,11.716,2068.9,2068.7,0.022]
[1773356570224,6.43639558,2068.9,2068.7,0.022]
[1773356570624,21.5466808,2068.9,2068.7,0.022]
[1773356570824,15.11028522,2068.8,2068.5,0.022]
[1773356571632,15.15428522,2068.9,2068.5,14.04457893]
[1773356571830,11.742,2068.8,2068.5,14.04457893]
[1773356572030,11.787,2068.9,2068.5,14.04457893]
[1773356572831,0.044,2068.9,2068.5,14.04457893]
[1773356573032,11.788,2068.9,2068.5,14.04457893]
[1773356574129,0.044,2068.9,2068.5,14.04457893]
[1773356574336,26.90028522,2068.9,2068.5,14.04457893]
[1773356574732,11.79,2068.9,2068.5,14.04457893]
[1773356575836,0.00413115,2069.3,2068.5,14.26424893]
[1773356575837,26.86341637,2069.3,2068.5,14.26424893]
[1773356576031,26.84141637,2069.3,2068.8,14.02257893]
[1773356577027,26.84757427,2069.3,2068.8,14.02257893]
[1773356577337,15.11028522,2069.2,2068.7,0.022]
[1773356579939,15.11028522,2069.2,2068.7,14.04457893]
[1773356580135,11.763,2069.1,2068.7,14.04457893]
[1773356580336,26.87328522,2069.1,2068.7,14.04457893]
[1773356580537,15.11028522,2069.0,2068.7,14.04457893]
[1773356580737,15.11028522,2069.0,2068.7,0.022]
[1773356582636,15.11028522,2069.0,2068.5,0.25908216]
[1773356582836,15.11028522,2068.8,2068.3,14.04457893]
[1773356583041,26.88528522,2068.7,2068.3,14.28915147]
[1773356583734,11.775,2068.7,2068.3,14.28915147]
[1773356583936,0.066,2068.9,2068.3,14.28915147]
[1773356584142,15.11028522,2069.1,2068.5,14.02257893]
[1773356584338,11.78,2069.1,2068.5,14.02257893]
[1773356584732,11.758,2069.1,2068.9,14.04457893]
[1773356585342,11.758,2069.1,2068.9,0.022]
[1773356585539,26.86828522,2069.1,2068.9,0.022]
[1773356589240,26.86828522,2069.1,2068.7,14.04457893]
[1773356589544,26.91228522,2069.1,2068.7,14.04457893]
[1773356590246,11.802,2069.1,2068.7,14.04457893]
[1773356590450,11.78,2069.1,2068.7,14.04457893]
[1773356590944,26.89028522,2069.1,2068.7,14.04457893]
[1773356591245,15.15428522,2069.1,2068.7,14.04457893]
[1773356591547,26.96728522,2069.1,2068.7,14.04457893]
[1773356592846,8.74393622,2070.5,2068.7,14.04457893]
[1773356592847,1.41430567,2070.6,2069.8,14.02257893]
[1773356593044,14.92979179,2070.9,2070.4,0.022]
[1773356593237,14.92979179,2070.7,2070.4,0.022]
[1773356593545,14.92979179,2070.5,2070.2,0.022]
[1773356593739,26.78808682,2070.4,2070.2,0.022]
[1773356593938,26.79008682,2070.4,2070.2,0.02571568]
[1773356594143,11.827,2070.4,2070.2,0.02571568]
[1773356594546,0.00464223,2070.5,2070.1,14.02257893]
[1773356594747,11.834,2070.4,2070.1,14.02257893]
[1773356595649,11.834,2070.4,2070.1,14.02721866]
[1773356596847,15.11028522,2070.3,2069.8,0.022]
[1773356597053,15.11028522,2070.3,2069.8,14.04457893]
[1773356597956,15.11028522,2070.3,2069.8,14.04896903]
[1773356598252,11.857,2070.2,2069.8,14.04896903]
[1773356598649,15.20292745,2070.5,2069.8,14.28957216]
[1773356598851,0.09264223,2070.5,2069.8,14.28957216]
[1773356599149,11.863,2070.4,2069.8,14.28957216]
[1773356600443,0.09264223,2070.5,2069.8,14.28957216]
[1773356600847,0.24135,2071.4,2070.0,16.12775094]
[1773356600848,11.874,2070.7,2070.0,16.12775094]
[1773356601250,15.17067992,2071.0,2070.5,15.90779094]
[1773356601453,15.17067992,2070.8,2070.3,15.90779094]
[1773356601650,15.17067992,2070.6,2070.3,15.90779094]
[1773356601954,27.05331824,2070.6,2070.3,15.90779094]
[1773356602147,11.88263832,2070.6,2070.3,15.90779094]
[1773356602954,0.24135,2071.4,2069.8,0.24499323]
[1773356602955,15.17067992,2072.0,2070.4,16.12725094]
[1773356603152,15.17067992,2071.4,2070.4,15.88579094]
[1773356603351,15.17067992,2071.2,2070.6,0.022]
[1773356603751,15.17067992,2071.2,2070.4,0.022]
[1773356603952,15.35203416,2071.2,2070.4,0.022]
[1773356604457,15.35203416,2071.2,2070.4,15.90779094]
[1773356606756,15.35203416,2071.2,2070.4,0.022]
[1773356607755,11.921,2071.1,2070.4,15.90779094]
[1773356608160,15.17067992,2071.0,2070.4,15.90779094]
[1773356610663,11.938,2070.9,2070.4,15.90779094]
[1773356610860,15.17067992,2070.8,2070.4,15.90779094]
[1773356611061,11.941,2070.7,2070.4,15.90779094]
[1773356611263,15.17067992,2071.1,2070.4,15.90779094]
[1773356611457,11.943,2070.8,2070.4,15.90779094]
[1773356611658,11.944,2070.7,2070.4,15.90779094]
[1773356611962,11.5838701,2070.7,2070.4,15.90779094]
[1773356612457,11.2217402,2070.7,2070.4,15.90779094]
[1773356612964,11.951,2070.6,2070.4,15.90779094]
[1773356613165,11.952,2070.6,2070.4,11.79900331]
[1773356614064,11.952,2070.6,2070.4,11.67041291]
[1773356614460,27.12267992,2070.6,2070.2,16.14569217]
[1773356614665,15.17067992,2070.5,2070.2,0.25990123]
[1773356617661,15.17067992,2070.5,2070.2,16.14569217]
[1773356617662,11.975,2070.4,2070.2,16.14569217]
[1773356617964,11.975,2070.4,2070.2,0.25990123]
[1773356618166,27.14567992,2070.4,2070.2,0.25990123]
[1773356618362,15.17067992,2070.4,2070.1,15.57184559]
[1773356618567,11.98,2070.3,2070.1,15.57184559]
[1773356618969,27.15067992,2070.3,2070.0,0.022]
[1773356619163,15.17067992,2070.2,2070.0,0.022]
[1773356619470,11.986,2070.4,2070.0,15.90779094]
[1773356619665,27.15667992,2070.4,2070.0,15.90779094]
[1773356620167,11.986,2070.4,2070.0,15.90779094]
[1773356620369,11.993,2070.3,2070.0,16.15259703]
[1773356621570,11.993,2070.3,2070.0,0.19191659]
[1773356621571,15.17067992,2070.2,2070.0,0.19191659]
[1773356621765,15.17067992,2070.2,2069.9,4.00184992]
[1773356621766,15.17067992,2070.2,2069.8,19.91403096]
[1773356622068,15.17067992,2070.2,2069.9,19.88764086]
[1773356622272,15.41267992,2071.0,2070.2,15.88579094]
[1773356622475,12.01,2070.9,2070.4,19.90122757]
[1773356622673,27.18067992,2070.9,2070.5,19.90122757]
[1773356622862,27.18067992,2070.9,2070.6,15.88579094]
[1773356623071,15.92798631,2070.8,2070.5,4.01543663]
[1773356623376,15.92798631,2070.8,2070.1,6.02008925]
[1773356623674,15.92798631,2070.8,2070.0,21.6326856]
[1773356624174,15.92798631,2070.8,2070.0,15.61259635]
[1773356625163,15.92798631,2070.8,2069.9,6.02008925]
[1773356625366,15.92798631,2070.8,2070.0,15.61259635]
[1773356625674,15.92798631,2070.6,2070.0,15.61259635]
[1773356625976,12.051,2070.7,2070.3,15.61259635]
[1773356626673,15.92798631,2070.6,2070.3,15.61259635]
[1773356626873,27.97898631,2070.7,2070.3,15.61259635]
[1773356627977,15.92798631,2070.6,2070.2,15.61259635]
[1773356628678,15.92798631,2070.9,2070.2,15.61259635]
[1773356628975,12.08,2070.8,2070.2,15.61259635]
[1773356629177,12.083,2070.8,2070.3,15.61259635]
[1773356629372,12.084,2070.8,2070.3,15.61259635]
[1773356630072,12.091,2070.9,2070.3,15.61259635]
[1773356630276,12.091,2070.9,2070.4,15.61259635]
[1773356631275,12.101,2070.9,2070.4,15.61259635]
[1773356631571,15.2183251,2071.6,2070.7,15.47320102]
[1773356631773,15.2183251,2071.6,2070.6,6.02008925]
[1773356631774,15.2183251,2071.8,2070.9,15.47320102]
[1773356631971,15.2183251,2071.7,2071.4,0.022]
[1773356632173,15.2183251,2071.7,2071.4,15.49520102]
[1773356632174,11.08382164,2071.7,2071.4,15.49520102]
[1773356632879,0.0042753,2071.7,2071.4,15.50054803]
[1773356633379,12.116,2071.6,2071.4,15.50054803]
[1773356633578,15.2403251,2071.9,2071.4,15.50054803]
[1773356633774,27.3363251,2071.8,2071.4,15.50054803]
[1773356633981,15.2623251,2071.7,2071.2,0.022]
[1773356634376,15.2623251,2071.7,2071.0,0.022]
[1773356634578,15.2183251,2071.5,2071.0,15.49520102]
[1773356634779,15.2183251,2071.3,2071.0,15.49520102]
[1773356634979,15.22291526,2071.3,2071.0,15.49892426]
[1773356635182,15.22291526,2071.3,2070.8,15.49520102]
[1773356635382,15.22291526,2071.3,2070.8,0.022]
[1773356635878,12.133,2071.2,2070.8,15.49520102]
[1773356636181,12.133,2071.2,2070.8,15.49974351]
[1773356636782,12.137,2071.2,2070.8,15.49974351]
[1773356636978,15.2183251,2071.1,2070.8,15.49974351]
[1773356637182,27.3583251,2071.2,2070.8,15.74353793]
[1773356637385,15.2183251,2073.0,2071.9,15.47320102]
[1773356637677,15.2183251,2073.0,2072.0,0.022]
[1773356637678,15.1623251,2073.0,2072.0,0.022]
[1773356637880,15.2183251,2072.4,2072.0,0.022]
[1773356638077,15.2183251,2072.2,2071.8,0.022]
[1773356638281,15.2183251,2072.2,2071.6,0.022]
[1773356638282,15.22307656,2072.2,2071.6,0.022]
[1773356638874,15.22307656,2072.2,2071.6,15.49520102]
[1773356638875,2.71756033,2071.9,2071.6,15.49520102]
[1773356639884,2.71756033,2071.8,2071.6,15.73371258]
[1773356640588,17.93588543,2071.8,2071.4,15.49520102]
[1773356640783,2.71756033,2071.8,2071.4,15.49520102]
[1773356640989,2.71756033,2071.6,2071.4,15.49520102]
[1773356641285,1.75643151,2071.6,2071.4,15.49520102]
[1773356641485,12.206,2071.8,2071.4,15.49520102]
[1773356642791,27.4243251,2071.8,2071.4,15.49520102]
[1773356643489,12.52902596,2074.8,2072.6,15.47320102]
[1773356643688,15.2183251,2074.0,2072.6,15.47320102]
[1773356643886,15.2183251,2073.4,2072.6,15.47320102]
[1773356644087,15.2183251,2073.2,2072.6,15.47320102]
[1773356644288,12.244,2073.1,2072.6,15.47320102]
[1773356644487,12.24804217,2073.1,2072.6,15.47838627]
[1773356645391,11.59273645,2073.1,2072.6,15.47838627]
[1773356645592,12.269,2073.3,2072.6,15.47838627]
[1773356645792,15.2183251,2073.7,2072.6,15.47838627]
[1773356645991,12.276,2073.6,2072.6,15.47838627]
[1773356646192,15.2183251,2073.7,2072.6,15.47838627]
[1773356646398,12.282,2073.6,2072.6,15.47838627]
[1773356646696,12.28704873,2073.6,2072.6,15.47838627]
[1773356647900,27.50537383,2073.6,2072.6,15.47838627]
[1773356648394,10.01765499,2075.7,2073.8,15.47320102]
[1773356648395,15.2183251,2075.0,2073.8,15.47320102]
[1773356649290,15.22171249,2075.0,2073.8,15.47320102]
[1773356649492,15.22171249,2075.0,2074.4,0.022]
[1773356649493,15.19971249,2075.0,2074.4,0.022]
[1773356649696,15.2183251,2074.8,2074.2,0.022]
[1773356649900,27.5573251,2074.7,2074.2,0.022]
[1773356650100,15.2183251,2074.7,2074.2,15.49520102]
[1773356650301,12.346,2074.6,2074.2,15.49520102]
[1773356650495,0.00338739,2075.0,2074.2,15.49520102]
[1773356650699,0.00338739,2075.0,2074.3,15.47320102]
[1773356650895,15.2183251,2075.5,2074.3,15.47320102]
[1773356651103,27.5813251,2075.5,2074.3,15.47320102]
[1773356651502,15.2183251,2075.5,2074.3,15.47320102]
[1773356651700,27.5923251,2075.5,2074.3,15.47320102]
[1773356651900,27.59843004,2075.5,2074.3,15.47320102]
[1773356652297,15.2183251,2076.1,2074.8,15.47320102]
[1773356652601,15.2183251,2075.3,2074.3,15.47320102]
[1773356652795,15.2183251,2075.1,2074.3,15.47320102]
[1773356653199,15.22454724,2075.1,2074.2,0.00582095]
[1773356653502,15.2183251,2074.9,2073.8,15.47320102]
[1773356653999,15.2183251,2074.9,2073.8,15.71295425]
[1773356654199,0.022,2074.8,2074.0,0.022]
[1773356654391,0.23530173,2076.7,2075.5,15.47320102]
[1773356654594,0.23530173,2076.7,2075.4,0.24088]
[1773356654595,15.2183251,2076.9,2076.0,15.47320102]
[1773356654996,15.1963251,2076.9,2076.0,15.47320102]
[1773356655294,15.2020811,2076.9,2076.0,0.00513206]
[1773356655497,18.00099535,2076.9,2076.0,0.00513206]
[1773356656102,15.2183251,2076.5,2075.4,15.47320102]
[1773356656291,14.90796914,2079.9,2075.6,15.47320102]
[1773356656503,16.5851411,2081.0,2078.9,6.15591]
[1773356656694,16.5741411,2078.9,2078.3,0.022]
[1773356656992,16.5631411,2078.8,2077.8,0.05269825]
[1773356657195,16.5631411,2078.8,2077.7,0.022]
[1773356657196,19.36205535,2078.7,2077.7,0.022]
[1773356657405,19.36583734,2078.7,2077.7,0.02641523]
[1773356657601,17.34208805,2078.3,2077.5,0.022]
[1773356657804,17.34208805,2078.0,2077.1,0.022]
[1773356658102,17.34208805,2077.8,2077.1,0.022]
[1773356658306,29.84108805,2077.7,2077.1,0.022]
[1773356658502,17.18519357,2078.3,2077.1,1.93264253]
[1773356658704,0.176,2078.4,2077.4,1.88014239]
[1773356659202,12.563,2078.3,2077.4,1.88014239]
[1773356659507,12.767,2078.4,2077.4,1.88014239]
[1773356659800,17.44693595,2078.3,2077.2,1.34370082]
[1773356660402,20.2458502,2078.3,2077.1,0.02610649]
[1773356660597,17.45135868,2077.9,2077.1,0.02610649]
[1773356660806,17.36081722,2079.5,2077.9,1.47948057]
[1773356661099,17.36081722,2079.5,2078.3,1.50148057]
[1773356661100,17.33881722,2079.5,2078.3,1.50148057]
[1773356661699,17.3435645,2079.5,2078.3,1.50148057]
[1773356662302,30.1045645,2079.5,2078.3,1.50148057]
[1773356662501,17.08069985,2079.4,2078.3,1.50148057]
[1773356662903,17.07752999,2079.5,2078.3,1.50148057]
[1773356663104,17.07278271,2079.3,2078.3,1.50148057]
[1773356663899,17.07278271,2079.3,2077.9,2.59937493]
[1773356664406,29.93765126,2079.2,2077.9,43.39937493]
[1773356664705,17.06565126,2079.1,2078.0,2.59180336]
[1773356665405,12.916,2079.0,2078.0,2.59180336]
[1773356665907,17.06565126,2078.9,2077.7,2.53607361]
[1773356666206,18.04892585,2082.5,2080.1,5.91228]
[1773356666403,5.90308,2083.4,2078.0,5.44048365]
[1773356666404,12.952,2082.7,2079.5,5.91396]
[1773356666600,17.99774133,2081.7,2080.9,0.022]
[1773356666801,0.24134674,2083.5,2080.7,0.022]
[1773356666802,17.99774133,2081.5,2080.7,0.022]
[1773356667004,17.99774133,2081.1,2080.7,0.022]
[1773356667202,17.99774133,2080.9,2080.7,0.02647877]
[1773356667399,0.24557206,2083.9,2082.8,14.18817446]
[1773356667603,17.06565126,2084.0,2082.2,13.90932415]
[1773356667802,17.06565126,2083.4,2082.2,13.90932415]
[1773356667999,5.90553,2082.5,2081.9,14.165378]
[1773356668302,5.90553,2082.5,2081.1,14.165378]
[1773356668303,5.90606,2082.3,2081.1,14.165378]
[1773356668607,5.9066,2082.1,2081.1,14.16985644]
[1773356668806,0.24021,2081.2,2080.4,15.72743904]
[1773356669004,17.06565126,2081.6,2080.4,15.72743904]
[1773356669205,0.044,2081.6,2080.9,0.022]
[1773356669399,17.10965126,2081.6,2080.9,0.022]
[1773356669709,22.97395126,2081.5,2080.9,0.0277941]
[1773356670007,17.13165126,2081.4,2080.7,0.022]
[1773356670410,17.06565126,2081.3,2080.7,0.022]
[1773356670705,17.06565126,2080.8,2080.3,0.022]
[1773356671010,17.06565126,2080.8,2080.3,15.07819656]
[1773356671011,0.0048771,2080.8,2080.3,15.07819656]
[1773356671205,17.06565126,2080.6,2079.9,0.022]
[1773356671410,5.91057,2080.7,2079.9,0.022]
[1773356671411,13.3138771,2080.8,2079.9,15.07256184]
[1773356671711,17.06565126,2080.7,2079.7,17.07608024]
[1773356672208,17.06565126,2080.7,2079.7,17.08138648]
[1773356672408,13.362,2080.6,2079.7,17.08138648]
[1773356672603,17.06565126,2080.6,2079.7,17.08138648]
[1773356672802,13.384,2080.5,2079.7,17.08138648]
[1773356673509,0.0048771,2080.8,2079.7,17.08138648]
[1773356673709,13.4338771,2080.8,2079.7,17.08138648]
[1773356674112,17.06565126,2080.7,2079.7,17.08138648]
[1773356674810,17.06565126,2080.7,2079.7,0.02730624]
[1773356675115,30.55265126,2080.6,2079.7,0.02730624]
[1773356675616,17.06565126,2080.5,2079.7,0.02730624]
[1773356676013,17.06565126,2080.5,2079.1,0.022]
[1773356677309,17.06565126,2080.3,2079.5,0.02759061]
[1773356677817,0.0048771,2080.8,2080.0,17.05408024]
[1773356678015,0.0048771,2080.8,2079.5,5.94155061]
[1773356678016,17.06565126,2081.8,2080.1,17.05408024]
[1773356678308,6.14734,2081.9,2080.6,17.07608024]
[1773356678309,17.04365126,2081.6,2080.6,17.07608024]
[1773356678810,0.0048771,2081.6,2080.6,17.07608024]
[1773356679014,0.00621505,2081.6,2080.6,17.07608024]
[1773356679613,0.022,2081.7,2080.8,17.05408024]
[1773356680111,0.022,2081.7,2080.9,17.05408024]
[1773356680306,17.06565126,2082.2,2080.9,17.05408024]
[1773356680508,0.0048771,2082.1,2080.9,17.05408024]
[1773356680704,17.06565126,2081.8,2081.2,0.022]
[1773356680910,17.06565126,2081.8,2081.0,0.022]
[1773356681310,30.75265126,2081.8,2081.0,0.022]
[1773356681609,0.24016,2081.6,2080.8,0.022]
[1773356681814,17.06565126,2081.5,2080.8,0.022]
[1773356682008,17.06565126,2081.5,2080.8,0.02692468]
[1773356683012,17.06565126,2081.3,2080.2,0.022]
[1773356683212,18.26227592,2080.9,2080.2,0.022]
[1773356683408,5.90916,2081.2,2080.0,0.022]
[1773356683409,0.24027,2080.6,2080.0,0.022]
[1773356683607,18.50254592,2080.6,2080.0,0.022]
[1773356683811,18.26227592,2080.6,2080.0,0.022]
[1773356684011,18.26601999,2080.6,2080.0,0.0265727]
[1773356684216,0.00374407,2080.6,2080.0,16.87298674]
[1773356685113,18.26601999,2080.6,2080.0,0.0265727]
[1773356685318,18.26601999,2080.6,2079.8,0.022]
[1773356685518,0.00374407,2080.6,2079.8,16.793853]
[1773356686409,18.26601999,2080.6,2079.8,16.7988675]
[1773356686612,18.26227592,2082.0,2080.7,16.73744609]
[1773356686813,18.26227592,2082.0,2080.6,0.24027]
[1773356686814,18.26227592,2082.0,2080.8,22.7876163]
[1773356687018,18.24027592,2082.0,2081.6,0.022]
[1773356687318,18.26227592,2081.8,2081.2,0.022]
[1773356687524,32.0492045,2081.8,2081.2,0.02772679]
[1773356687721,18.26227592,2081.7,2081.0,0.022]
[1773356688718,18.26227592,2081.7,2081.0,0.02642256]
[1773356690223,18.26227592,2081.7,2081.1,6.09525057]
[1773356690524,18.26227592,2081.7,2081.0,0.02642256]
[1773356690824,18.26227592,2081.7,2081.1,6.09430076]
[1773356691030,18.26227592,2081.7,2081.2,6.09430076]
[1773356691224,18.26227592,2081.7,2081.0,0.02642256]
[1773356691415,17.27905117,2082.0,2081.1,23.15896116]
[1773356691617,17.27905117,2082.0,2081.2,6.09677038]
[1773356691821,17.27905117,2082.0,2081.0,0.00442256]
[1773356692016,17.27905117,2082.0,2081.1,6.09692351]
[1773356692322,17.27905117,2082.2,2081.3,17.01838037]
[1773356692524,17.28512103,2082.2,2081.4,6.09692351]
[1773356693127,17.28512103,2082.2,2081.0,20.8564526]
[1773356693323,17.28512103,2082.2,2081.1,26.95158512]
[1773356693525,17.28512103,2082.2,2081.2,6.09955508]
[1773356693820,17.28512103,2082.2,2081.3,6.09955508]
[1773356694021,17.27905117,2082.0,2081.0,0.00442256]
[1773356695626,17.27905117,2081.8,2081.0,0.00442256]
[1773356696727,17.27905117,2081.8,2080.7,3.8605794]
[1773356697027,17.27905117,2081.8,2080.6,3.8605794]
[1773356697225,17.27905117,2081.6,2080.5,1.83080066]
[1773356697526,17.27905117,2081.4,2080.2,17.17266922]
[1773356697728,17.27905117,2081.2,2080.2,17.17719673]
[1773356698027,13.835,2081.1,2080.2,17.17719673]